fUSD/lending_fUSD_20241123
["ID","MTS","AMOUNT","RATE_DAILY","PERIOD"]
[343142810,1732379446357,-290.95121311,0.0005543,30]
[343142811,1732379446368,-150.25,0.00055445,120]
[343142812,1732379446381,-871.9,0.00055452,60]
[343142813,1732379446392,-300.0,0.00055453,60]
[343142814,1732379446404,-150.0,0.00055453,60]
[343142815,1732379446416,-365.28,0.00055453,60]
[343142816,1732379446427,-362.86,0.00055453,60]
[343142817,1732379446438,-150.0,0.00055453,60]
[343142818,1732379446449,-150.0,0.00055453,60]
[343142819,1732379446459,-573.71,0.00055453,60]
[343142820,1732379446470,-362.86,0.00055453,60]
[343142821,1732379446480,-2110.0,0.0005549,30]
[343142822,1732379446491,-500.0,0.00055555,2]
[343142823,1732379446501,-150.0,0.00055665,120]
[343142824,1732379446514,-1000.0,0.000557,7]
[343142825,1732379446524,-500.0,0.00055709,120]
[343142826,1732379446534,-669.24,0.00055709,120]
[343142827,1732379446549,-500.0,0.00055709,120]
[343142828,1732379446559,-500.0,0.00055709,120]
[343142829,1732379446570,-500.0,0.00055709,120]
[343142830,1732379446581,-1253.87,0.00055709,120]
[343142831,1732379446591,-500.0,0.00055709,120]
[343142832,1732379446601,-518.23,0.00055709,120]
[343142833,1732379446612,-500.0,0.00055709,120]
[343142834,1732379446622,-500.0,0.00055709,120]
[343142835,1732379446633,-576.41,0.00055709,120]
[343142836,1732379446643,-501.99,0.00055709,120]
[343142837,1732379446654,-1279.29,0.00055709,120]
[343142838,1732379446664,-535.22,0.00055709,120]
[343142839,1732379446675,-768.5,0.00055709,120]
[343142840,1732379446686,-601.39,0.00055709,120]
[343142841,1732379446696,-811.91,0.00055709,120]
[343142842,1732379446707,-500.0,0.00055709,120]
[343142843,1732379446718,-500.0,0.00055709,120]
[343142844,1732379446728,-317.81040109,0.00055709,120]
[343142845,1732379446739,-500.0,0.0005571,2]
[343142846,1732379446750,-500.0,0.0005571,2]
[343142847,1732379446761,-500.0,0.0005571,2]
[343142848,1732379446771,-500.0,0.0005571,2]
[343142849,1732379446782,-500.0,0.0005571,2]
[343142850,1732379446797,-428.8898,0.0005571,2]
[343142851,1732379446807,-1000.0,0.0005571,2]
[343142852,1732379446818,-1000.0,0.0005571,2]
[343142853,1732379446832,-1000.0,0.0005571,2]
[343142856,1732379446844,-1000.0,0.0005571,2]
[343142857,1732379446855,-1000.0,0.0005571,2]
[343142858,1732379446866,-1000.0,0.0005571,2]
[343142859,1732379446879,-1000.0,0.0005571,2]
[343142860,1732379446890,-1000.0,0.0005571,2]
[343142862,1732379446902,-1000.0,0.0005571,2]
[343142863,1732379446913,-1000.0,0.0005571,2]
[343142864,1732379446925,-1000.0,0.0005571,2]
[343142866,1732379446935,-1000.0,0.0005571,2]
[343142868,1732379446946,-1000.0,0.0005571,2]
[343142870,1732379446957,-1000.0,0.0005571,2]
[343142872,1732379446967,-1000.0,0.0005571,2]
[343142874,1732379446978,-1000.0,0.0005571,2]
[343142876,1732379446989,-1000.0,0.0005571,2]
[343142877,1732379447000,-1000.0,0.0005571,2]
[343142878,1732379447011,-1000.0,0.0005571,2]
[343142879,1732379447022,-1000.0,0.0005571,2]
[343142880,1732379447033,-1000.0,0.0005571,2]
[343142881,1732379447046,-1000.0,0.0005571,2]
[343142882,1732379447057,-1000.0,0.0005571,2]
[343142883,1732379447068,-1000.0,0.0005571,2]
[343142884,1732379447078,-1000.0,0.0005571,2]
[343142885,1732379447088,-1000.0,0.0005571,2]
[343142886,1732379447099,-1000.0,0.0005571,2]
[343142887,1732379447110,-1000.0,0.0005571,2]
[343142888,1732379447120,-1000.0,0.0005571,2]
[343142889,1732379447131,-1000.0,0.0005571,2]
[343142890,1732379447142,-632.0148,0.0005571,2]
[343142891,1732379447152,-1122.0,0.00055717,25]
[343142892,1732379447163,-150.0,0.00055717,14]
[343142893,1732379447173,-150.0,0.00055719,14]
[343142894,1732379447183,-150.0,0.00055733,14]
[343142895,1732379447194,-150.0,0.00055737,14]
[343142896,1732379447204,-150.0,0.00055746,14]
[343142897,1732379447215,-150.0,0.00055747,14]
[343142898,1732379447225,-150.0,0.00055751,14]
[343142899,1732379447235,-150.0,0.00055753,14]
[343142900,1732379447246,-150.0,0.00055754,14]
[343142901,1732379447256,-150.0,0.00055761,14]
[343142902,1732379447267,-500.0,0.00055763,2]
[343142903,1732379447277,-3915.0056,0.00055763,2]
[343142904,1732379447288,-150.0,0.00055774,14]
[343142905,1732379447301,-150.0,0.00055774,14]
[343142906,1732379447312,-150.0,0.00055777,14]
[343142907,1732379447322,-150.0,0.00055778,14]
[343142908,1732379447333,-150.0,0.00055781,14]
[343142909,1732379447343,-150.0,0.00055784,14]
[343142910,1732379447353,-150.0,0.00055788,14]
[343142911,1732379447364,-663.87,0.00055788,120]
[343142912,1732379447374,-150.0,0.00055789,14]
[343142913,1732379447385,-150.0,0.0005579,14]
[343142914,1732379447395,-150.0,0.00055797,14]
[343142915,1732379447406,-150.0,0.00055799,14]
[343142916,1732379447416,-20000.000001,0.000558,60]
[343142917,1732379447426,-150.0,0.00055801,14]
[343142918,1732379447436,-150.0,0.00055801,14]
[343142919,1732379447447,-150.0,0.00055805,14]
[343142920,1732379447457,-150.0,0.00055814,14]
[343142921,1732379447467,-150.0,0.00055822,14]
[343142922,1732379447477,-150.0,0.00055823,14]
[343142923,1732379447488,-150.0,0.00055829,14]
[343142924,1732379447498,-150.0,0.0005583,14]
[343142925,1732379447507,-150.0,0.0005583,14]
[343142926,1732379447518,-150.0,0.00055833,14]
[343142927,1732379447527,-150.0,0.00055833,14]
[343142928,1732379447537,-150.0,0.00055838,14]
[343142929,1732379447551,-150.0,0.00055839,14]
[343142930,1732379447561,-150.0,0.00055852,14]
[343142931,1732379447572,-179.14221712,0.00055855,14]
[343142932,1732379447581,-150.0,0.00055855,14]
[343142933,1732379447590,-150.0,0.00055858,14]
[343142934,1732379447599,-150.0,0.00055859,14]
[343142935,1732379447609,-698.2,0.00055861,120]
[343142936,1732379447619,-968.19,0.00055861,120]
[343142937,1732379447629,-620.61,0.00055861,120]
[343142938,1732379447639,-500.0,0.00055861,120]
[343142939,1732379447650,-1197.57,0.00055861,120]
[343142940,1732379447660,-500.0,0.00055861,120]
[343142941,1732379447670,-716.07,0.00055861,120]
[343142942,1732379447680,-955.45,0.00055861,120]
[343142943,1732379447690,-786.49,0.00055861,120]
[343142944,1732379447701,-1295.75,0.00055863,120]
[343142945,1732379447711,-595.63,0.00055863,120]
[343142946,1732379447721,-500.0,0.00055863,120]
[343142947,1732379447732,-912.31,0.00055863,120]
[343142948,1732379447742,-1682.01,0.00055863,120]
[343142949,1732379447752,-663.87,0.00055863,120]
[343142950,1732379447762,-150.0,0.00055864,14]
[343142951,1732379447772,-11341.923447,0.00055865,7]
[343142952,1732379447783,-150.0,0.00055868,14]
[343142953,1732379447797,-150.0,0.00055869,14]
[343142954,1732379447807,-80432.75977936,0.0005587,120]
[343142955,1732379447818,-150.0,0.00055873,14]
[343142956,1732379447831,-500.0,0.00055879,120]
[343142957,1732379447842,-500.0,0.00055879,120]
[343142958,1732379447855,-536.51,0.00055879,120]
[343142959,1732379448107,-500.0,0.00055879,120]
[343142960,1732379448130,-500.0,0.00055879,120]
[343142961,1732379448151,-500.0,0.00055879,120]
[343142962,1732379448178,-500.0,0.00055879,120]
[343142963,1732379448189,-663.87,0.00055879,120]
[343142964,1732379448200,-690.15,0.00055879,120]
[343142965,1732379448210,-500.0,0.00055879,120]
[343142966,1732379448221,-500.0,0.00055879,120]
[343142967,1732379448232,-500.0,0.00055879,21]
[343142968,1732379448242,-500.0,0.00055879,120]
[343142969,1732379448252,-500.0,0.00055879,120]
[343142970,1732379448262,-80000.0,0.0005588,120]
[343142971,1732379448272,-11341.923447,0.00055883,7]
[343142972,1732379448282,-150.0,0.00055886,14]
[343142973,1732379448298,-698.2,0.00055887,120]
[343142974,1732379448308,-968.19,0.00055887,120]
[343142975,1732379448318,-620.61,0.00055887,120]
[343142976,1732379448327,-159.23,0.00055887,120]
[343142977,1732379448338,-1197.57,0.00055887,120]
[343142978,1732379448348,-500.0,0.00055887,120]
[343142979,1732379448358,-716.07,0.00055887,120]
[343142980,1732379448367,-955.45,0.00055887,120]
[343142981,1732379448376,-786.49,0.00055887,120]
[343142982,1732379448387,-500.0,0.00055888,120]
[343142983,1732379448396,-500.0,0.00055888,120]
[343142984,1732379448406,-500.0,0.00055888,120]
[343142985,1732379448416,-732.38,0.00055888,120]
[343142986,1732379448425,-500.0,0.00055888,120]
[343142987,1732379448435,-794.05,0.00055888,120]
[343142988,1732379448444,-832.01,0.00055888,120]
[343142989,1732379448454,-663.87,0.00055888,120]
[343142990,1732379448465,-500.0,0.00055888,120]
[343142991,1732379448475,-1429.26,0.00055888,120]
[343142992,1732379448485,-525.26,0.00055888,120]
[343142993,1732379448495,-500.0,0.00055888,120]
[343142994,1732379448504,-500.0,0.00055888,120]
[343142995,1732379448515,-500.0,0.00055888,120]
[343142996,1732379448525,-500.0,0.00055888,120]
[343142997,1732379448534,-500.0,0.00055888,120]
[343142998,1732379448552,-500.0,0.00055888,120]
[343142999,1732379448562,-500.0,0.00055888,120]
[343143000,1732379448571,-864.27,0.00055888,54]
[343143001,1732379448581,-510.28,0.00055888,120]
[343143002,1732379448591,-500.0,0.00055888,120]
[343143003,1732379448600,-1209.97,0.00055888,120]
[343143004,1732379448610,-905.44,0.00055888,120]
[343143005,1732379448620,-500.0,0.00055888,120]
[343143006,1732379448630,-952.02,0.00055888,120]
[343143007,1732379448645,-770.57,0.00055888,120]
[343143008,1732379448654,-500.0,0.00055888,120]
[343143009,1732379448664,-862.3,0.00055888,120]
[343143010,1732379448674,-500.0,0.00055888,120]
[343143011,1732379448683,-500.0,0.00055888,120]
[343143012,1732379448693,-500.0,0.00055888,120]
[343143013,1732379448703,-500.0,0.00055888,120]
[343143014,1732379448712,-911.22,0.00055888,120]
[343143015,1732379448722,-500.0,0.00055888,120]
[343143016,1732379448732,-500.0,0.00055888,120]
[343143017,1732379448741,-500.0,0.00055888,120]
[343143018,1732379448751,-500.0,0.00055888,120]
[343143019,1732379448761,-1026.01,0.00055888,30]
[343143020,1732379448770,-547.56527463,0.00055888,120]
[343143021,1732379448779,-907.09,0.00055888,120]
[343143022,1732379448792,-500.0,0.00055888,120]
[343143023,1732379448802,-804.88,0.00055888,120]
[343143024,1732379448811,-813.28,0.00055888,120]
[343143025,1732379448820,-101409.53337512,0.00055889,7]
[343143026,1732379448835,-1295.75,0.00055889,120]
[343143027,1732379448844,-1295.75,0.00055889,120]
[343143028,1732379448853,-595.63,0.00055889,120]
[343143029,1732379448863,-595.63,0.00055889,120]
[343143030,1732379448874,-500.0,0.00055889,120]
[343143031,1732379448883,-165.14397961,0.00055889,120]
[343143032,1732379448892,-912.31,0.00055889,120]
[343143033,1732379448902,-912.31,0.00055889,120]
[343143034,1732379448912,-1682.01,0.00055889,120]
[343143035,1732379448922,-1682.01,0.00055889,120]
[343143036,1732379448932,-698.2,0.00055889,120]
[343143037,1732379448941,-698.2,0.00055889,120]
[343143038,1732379448951,-968.19,0.00055889,120]
[343143039,1732379448960,-968.19,0.00055889,120]
[343143040,1732379448970,-620.61,0.00055889,120]
[343143041,1732379448979,-620.61,0.00055889,120]
[343143042,1732379448989,-663.87,0.00055889,120]
[343143043,1732379448999,-663.87,0.00055889,120]
[343143044,1732379449010,-1197.57,0.00055889,120]
[343143045,1732379449020,-1197.57,0.00055889,120]
[343143046,1732379449029,-500.0,0.00055889,120]
[343143047,1732379449041,-500.0,0.00055889,120]
[343143048,1732379449051,-716.07,0.00055889,120]
[343143049,1732379449061,-716.07,0.00055889,120]
[343143050,1732379449071,-955.45,0.00055889,120]
[343143051,1732379449081,-955.45,0.00055889,120]
[343143052,1732379449091,-786.49,0.00055889,120]
[343143053,1732379449100,-786.49,0.00055889,120]
[343143054,1732379449110,-635.67589742,0.0005589,28]
[343143055,1732379449120,-155.64954925,0.0005589,15]
[343143056,1732379449129,-150.0,0.00055891,14]
[343143057,1732379449139,-150.0,0.00055893,14]
[343143058,1732379449149,-150.0,0.00055893,14]
[343143059,1732379449159,-150.0,0.00055895,14]
[343143060,1732379449169,-150.0,0.00055895,14]
[343143061,1732379449178,-150.0,0.00055898,14]
[343143062,1732379449188,-5000.0,0.000559,120]
[343143063,1732379449197,-486.0,0.000559,3]
[343143064,1732379449208,-5800.0,0.000559,14]
[343143065,1732379449218,-150.0,0.00055906,14]
[343143066,1732379449228,-150.0,0.00055911,14]
[343143067,1732379449238,-150.0,0.00055912,14]
[343143068,1732379449248,-150.0,0.00055917,14]
[343143069,1732379449258,-150.0,0.0005593,14]
[343143070,1732379449269,-150.0,0.00055931,14]
[343143071,1732379449278,-150.0,0.00055931,14]
[343143072,1732379449292,-150.0,0.00055934,14]
[343143073,1732379449302,-150.0,0.00055936,14]
[343143074,1732379449313,-150.0,0.00055937,14]
[343143075,1732379449323,-150.0,0.00055937,14]
[343143076,1732379449334,-101409.53337512,0.00055938,7]
[343143077,1732379449343,-150.0,0.00055941,14]
[343143078,1732379449354,-150.0,0.00055945,14]
[343143079,1732379449363,-150.0,0.00055945,14]
[343143080,1732379449373,-150.0,0.00055945,14]
[343143081,1732379449383,-166.34,0.00055947,2]
[343143082,1732379449393,-150.0,0.00055948,14]
[343143083,1732379449402,-500.0,0.00055951,60]
[343143084,1732379449412,-150.0,0.00055963,14]
[343143085,1732379449422,-150.0,0.00055965,14]
[343143086,1732379449431,-150.0,0.00055967,14]
[343143087,1732379449441,-500.0,0.0005597,120]
[343143088,1732379449451,-559.65,0.0005597,120]
[343143089,1732379449461,-500.0,0.0005597,120]
[343143090,1732379449470,-500.0,0.0005597,120]
[343143091,1732379449480,-500.0,0.0005597,120]
[343143092,1732379449489,-277.9,0.0005597,120]
[343143093,1732379449499,-500.0,0.0005597,120]
[343143094,1732379449508,-257.75,0.0005597,120]
[343143095,1732379449517,-603.66,0.0005597,120]
[343143096,1732379449527,-1157.44,0.0005597,120]
[343143097,1732379449536,-500.0,0.0005597,120]
[343143098,1732379449550,-500.0,0.0005597,120]
[343143099,1732379449560,-500.0,0.0005597,120]
[343143100,1732379449569,-550.58,0.0005597,120]
[343143101,1732379449578,-500.0,0.0005597,120]
[343143102,1732379449588,-574.31,0.0005597,120]
[343143103,1732379449598,-500.0,0.0005597,120]
[343143104,1732379449608,-259.48930341,0.0005597,120]
[343143105,1732379449618,-500.0,0.0005597,120]
[343143106,1732379449627,-500.0,0.0005597,120]
[343143107,1732379449637,-190.77,0.0005597,120]
[343143108,1732379449646,-538.83,0.0005597,120]
[343143109,1732379449656,-1368.35,0.0005597,120]
[343143110,1732379449666,-291.64880168,0.0005597,120]
[343143111,1732379449676,-653.99,0.0005597,120]
[343143112,1732379449686,-1021.45,0.0005597,120]
[343143113,1732379449696,-500.0,0.0005597,120]
[343143114,1732379449706,-882.33,0.0005597,120]
[343143115,1732379449717,-1077.12,0.0005597,120]
[343143116,1732379449727,-698.2,0.00055971,120]
[343143117,1732379449737,-968.19,0.00055971,120]
[343143118,1732379449747,-620.61,0.00055971,120]
[343143119,1732379449760,-1197.57,0.00055971,120]
[343143120,1732379449770,-500.0,0.00055971,120]
[343143121,1732379449779,-716.07,0.00055971,120]
[343143122,1732379449792,-955.45,0.00055971,120]
[343143123,1732379449800,-786.49,0.00055971,120]
[343143124,1732379449809,-663.87,0.00055972,120]
[343143125,1732379449818,-1295.75,0.00055973,120]
[343143126,1732379449827,-595.63,0.00055973,120]
[343143127,1732379449838,-912.31,0.00055973,120]
[343143128,1732379449847,-1682.01,0.00055973,120]
[343143129,1732379449857,-698.2,0.00055975,120]
[343143130,1732379449867,-968.19,0.00055975,120]
[343143131,1732379449879,-620.61,0.00055975,120]
[343143132,1732379449889,-1197.57,0.00055975,120]
[343143133,1732379449899,-464.77629483,0.00055975,120]
[343143134,1732379449908,-716.07,0.00055975,120]
[343143135,1732379449919,-955.45,0.00055975,120]
[343143136,1732379449929,-786.49,0.00055975,120]
[343143137,1732379449939,-150.0,0.00055978,14]
[343143138,1732379449948,-213.45747162,0.00055979,7]
[343143139,1732379449957,-166.08,0.0005598,30]
[343143140,1732379449967,-300.21,0.0005598,120]
[343143141,1732379449976,-150.5,0.0005598,120]
[343143142,1732379449986,-150.0,0.00055981,14]
[343143143,1732379449995,-502.8272821,0.00055985,60]
[343143144,1732379450005,-150.0,0.00055985,14]
[343143145,1732379450015,-500.0,0.00055985,120]
[343143146,1732379450024,-669.24,0.00055985,120]
[343143147,1732379450034,-500.0,0.00055985,120]
[343143148,1732379450047,-500.0,0.00055985,120]
[343143149,1732379450057,-500.0,0.00055985,120]
[343143150,1732379450067,-1253.87,0.00055985,120]
[343143151,1732379450077,-500.0,0.00055985,120]
[343143152,1732379450087,-518.23,0.00055985,120]
[343143153,1732379450097,-500.0,0.00055985,120]
[343143154,1732379450107,-500.0,0.00055985,120]
[343143155,1732379450118,-576.41,0.00055985,120]
[343143156,1732379450128,-501.99,0.00055985,120]
[343143157,1732379450139,-1279.29,0.00055985,120]
[343143158,1732379450151,-535.22,0.00055985,120]
[343143159,1732379450161,-768.5,0.00055985,120]
[343143160,1732379450172,-601.39,0.00055985,120]
[343143161,1732379450183,-811.91,0.00055985,120]
[343143162,1732379450194,-500.0,0.00055985,120]
[343143163,1732379450205,-500.0,0.00055985,120]
[343143164,1732379450216,-663.87,0.00055986,120]
[343143165,1732379450226,-663.87,0.00055986,120]
[343143166,1732379450235,-663.87,0.00055986,120]
[343143167,1732379450246,-663.87,0.00055986,120]
[343143168,1732379450256,-663.95,0.00055986,120]
[343143169,1732379450266,-698.2,0.00055987,120]
[343143170,1732379450277,-698.2,0.00055987,120]
[343143171,1732379450287,-698.2,0.00055987,120]
[343143172,1732379450301,-698.2,0.00055987,120]
[343143173,1732379450311,-698.36043341,0.00055987,120]
[343143174,1732379450322,-968.19,0.00055987,120]
[343143175,1732379450333,-968.19,0.00055987,120]
[343143176,1732379450343,-968.19,0.00055987,120]
[343143177,1732379450354,-968.19,0.00055987,120]
[343143178,1732379450364,-968.23750823,0.00055987,120]
[343143179,1732379450375,-620.61,0.00055987,120]
[343143180,1732379450385,-620.61,0.00055987,120]
[343143181,1732379450395,-620.61,0.00055987,120]
[343143182,1732379450410,-620.61,0.00055987,120]
[343143183,1732379450422,-150.0,0.00055987,14]
[343143184,1732379450432,-620.77,0.00055987,120]
[343143185,1732379450443,-1197.57,0.00055987,120]
[343143186,1732379450453,-1197.57,0.00055987,120]
[343143187,1732379450463,-1197.57,0.00055987,120]
[343143188,1732379450473,-1197.57,0.00055987,120]
[343143189,1732379450483,-1197.65279675,0.00055987,120]
[343143190,1732379450493,-716.07,0.00055987,120]
[343143191,1732379450502,-716.07,0.00055987,120]
[343143192,1732379450512,-716.07,0.00055987,120]
[343143193,1732379450522,-716.07,0.00055987,120]
[343143194,1732379450531,-716.17,0.00055987,120]
[343143195,1732379450545,-955.45,0.00055987,120]
[343143196,1732379450554,-955.45,0.00055987,120]
[343143197,1732379450564,-955.45,0.00055987,120]
[343143198,1732379450575,-955.45,0.00055987,120]
[343143199,1732379450584,-955.49562219,0.00055987,120]
[343143200,1732379450595,-786.49,0.00055987,120]
[343143201,1732379450605,-786.49,0.00055987,120]
[343143202,1732379450615,-786.49,0.00055987,120]
[343143203,1732379450624,-786.49,0.00055987,120]
[343143204,1732379450634,-786.4938768,0.00055987,120]
[343143205,1732379450644,-500.0,0.00055987,120]
[343143206,1732379450653,-500.0,0.00055987,120]
[343143207,1732379450663,-536.51,0.00055987,120]
[343143208,1732379450673,-500.0,0.00055987,120]
[343143209,1732379450683,-500.0,0.00055987,120]
[343143210,1732379450693,-500.0,0.00055987,120]
[343143211,1732379450702,-500.0,0.00055987,120]
[343143212,1732379450712,-663.87,0.00055987,120]
[343143213,1732379450722,-690.15,0.00055987,120]
[343143214,1732379450732,-500.0,0.00055987,120]
[343143215,1732379450742,-500.0,0.00055987,120]
[343143216,1732379450752,-500.0,0.00055987,21]
[343143217,1732379450762,-500.0,0.00055987,120]
[343143218,1732379450772,-500.0,0.00055987,120]
[343143219,1732379450781,-1295.75,0.00055988,120]
[343143220,1732379450795,-595.63,0.00055988,120]
[343143221,1732379450804,-912.31,0.00055988,120]
[343143222,1732379450814,-1682.01,0.00055988,120]
[343143223,1732379450823,-500.0,0.00055988,120]
[343143224,1732379450839,-500.0,0.00055988,120]
[343143225,1732379450849,-500.0,0.00055988,120]
[343143226,1732379450859,-500.0,0.00055988,120]
[343143227,1732379450869,-500.0,0.00055988,120]
[343143228,1732379450879,-500.0,0.00055988,120]
[343143229,1732379450888,-500.0,0.00055988,120]
[343143230,1732379450898,-297.48596265,0.00055988,120]
[343143231,1732379450908,-732.38,0.00055988,120]
[343143232,1732379450918,-732.38,0.00055988,120]
[343143233,1732379450927,-732.38,0.00055988,120]
[343143234,1732379450937,-500.0,0.00055988,120]
[343143235,1732379450947,-586.71359803,0.00055988,120]
[343143236,1732379450957,-794.05,0.00055988,120]
[343143237,1732379450967,-794.05,0.00055988,120]
[343143238,1732379450976,-794.05,0.00055988,120]
[343143239,1732379450986,-832.01,0.00055988,120]
[343143240,1732379450996,-832.01,0.00055988,120]
[343143241,1732379451007,-832.01,0.00055988,120]
[343143242,1732379451016,-500.0,0.00055988,120]
[343143243,1732379451026,-500.0,0.00055988,120]
[343143244,1732379451036,-500.0,0.00055988,120]
[343143245,1732379451050,-1429.26,0.00055988,120]
[343143246,1732379451060,-1429.26,0.00055988,120]
[343143247,1732379451070,-1429.26,0.00055988,120]
[343143248,1732379451081,-525.26,0.00055988,120]
[343143249,1732379451091,-525.26,0.00055988,120]
[343143250,1732379451102,-525.26,0.00055988,120]
[343143251,1732379451112,-500.0,0.00055988,120]
[343143252,1732379451123,-500.0,0.00055988,120]
[343143253,1732379451133,-500.0,0.00055988,120]
[343143254,1732379451143,-500.0,0.00055988,120]
[343143255,1732379451154,-500.0,0.00055988,120]
[343143256,1732379451163,-500.0,0.00055988,120]
[343143257,1732379451174,-500.0,0.00055988,120]
[343143258,1732379451185,-500.0,0.00055988,120]
[343143259,1732379451195,-500.0,0.00055988,120]
[343143260,1732379451206,-12565.348187,0.00055988,2]
[343143261,1732379451216,-500.0,0.00055988,120]
[343143262,1732379451226,-500.0,0.00055988,120]
[343143263,1732379451236,-500.0,0.00055988,120]
[343143264,1732379451246,-528.8737388,0.00055988,2]
[343143265,1732379451255,-500.0,0.00055988,120]
[343143266,1732379451265,-500.0,0.00055988,120]
[343143267,1732379451275,-500.0,0.00055988,120]
[343143268,1732379451285,-500.0,0.00055988,120]
[343143269,1732379451299,-453.069999,0.00055988,120]
[343143270,1732379451309,-500.0,0.00055988,120]
[343143271,1732379451319,-623.78,0.00055988,120]
[343143272,1732379451329,-864.27,0.00055988,54]
[343143273,1732379451340,-864.27,0.00055988,54]
[343143274,1732379451351,-864.27,0.00055988,54]
[343143275,1732379451361,-510.28,0.00055988,120]
[343143276,1732379451371,-510.28,0.00055988,120]
[343143277,1732379451381,-510.28,0.00055988,120]
[343143278,1732379451392,-500.0,0.00055988,120]
[343143279,1732379451402,-500.0,0.00055988,120]
[343143280,1732379451412,-500.0,0.00055988,120]
[343143281,1732379451577,-191.4329692,0.00055988,2]
[343143282,1732379451587,-553.91021495,0.00055988,120]
[343143283,1732379451596,-669.24,0.00055988,120]
[343143284,1732379451604,-669.24,0.00055988,120]
[343143285,1732379451614,-669.24,0.00055988,120]
[343143286,1732379451622,-3582.3070498,0.00055988,2]
[343143287,1732379451631,-500.0,0.00055988,120]
[343143288,1732379451640,-500.0,0.00055988,120]
[343143289,1732379451648,-500.0,0.00055988,120]
[343143290,1732379451657,-1209.97,0.00055988,120]
[343143291,1732379451667,-1209.97,0.00055988,120]
[343143292,1732379451674,-1209.97,0.00055988,120]
[343143293,1732379451682,-905.44,0.00055988,120]
[343143294,1732379451690,-905.44,0.00055988,120]
[343143295,1732379451699,-905.44,0.00055988,120]
[343143296,1732379451708,-500.0,0.00055988,120]
[343143297,1732379451717,-500.0,0.00055988,120]
[343143298,1732379451727,-500.0,0.00055988,120]
[343143299,1732379451737,-500.0,0.00055988,120]
[343143300,1732379451747,-500.0,0.00055988,120]
[343143301,1732379451756,-500.0,0.00055988,120]
[343143302,1732379451766,-952.02,0.00055988,120]
[343143303,1732379451775,-952.02,0.00055988,120]
[343143304,1732379451784,-952.02,0.00055988,120]
[343143305,1732379451799,-500.0,0.00055988,120]
[343143306,1732379451808,-500.0,0.00055988,120]
[343143307,1732379451818,-500.0,0.00055988,120]
[343143308,1732379451828,-770.57,0.00055988,120]
[343143309,1732379451838,-770.57,0.00055988,120]
[343143310,1732379451852,-770.57,0.00055988,120]
[343143311,1732379451860,-500.0,0.00055988,120]
[343143312,1732379451870,-500.0,0.00055988,120]
[343143313,1732379451879,-500.0,0.00055988,120]
[343143314,1732379451889,-862.3,0.00055988,120]
[343143315,1732379451898,-862.3,0.00055988,120]
[343143316,1732379451906,-862.3,0.00055988,120]
[343143317,1732379451913,-1253.87,0.00055988,120]
[343143318,1732379451922,-1253.87,0.00055988,120]